[Event "Titled Tuesday Blitz August 15 Early 2023"]
[White "agvania123"]
[Black "Kielinkei"]
[WhiteElo "2259"]
[BlackElo "2414"]
[Result "1/2-1/2"]
[Round "9"]
[TimeControl "180+1"]
[Date "2023.08.15"]
[WhiteClock "0:00:26"]
[BlackClock "0:00:02"]
[Board "129"]

1. c4 {[%clk 0:03:00]}  e5 {[%clk 0:02:58]} 2. Nc3 {[%clk 0:02:58]}  Nc6 {[%clk 0:02:59]} 3. Nf3 {[%clk 0:02:59]}  d6 {[%clk 0:02:59]} 4. e3 {[%clk 0:02:59]}  f5 {[%clk 0:02:56]} 5. d4 {[%clk 0:02:59]}  e4 {[%clk 0:02:55]} 6. d5 {[%clk 0:02:44]}  Ne5 {[%clk 0:02:49]} 7. Nxe5 {[%clk 0:02:43]}  dxe5 {[%clk 0:02:49]} 8. Be2 {[%clk 0:02:43]}  Nf6 {[%clk 0:02:48]} 9. O-O {[%clk 0:02:43]}  Bd6 {[%clk 0:02:42]} 10. b3 {[%clk 0:02:43]}  O-O {[%clk 0:02:42]} 11. Bb2 {[%clk 0:02:43]}  f4 {[%clk 0:02:36]} 12. exf4 {[%clk 0:02:41]}  exf4 {[%clk 0:02:36]} 13. f3 {[%clk 0:02:38]}  e3 {[%clk 0:02:35]} 14. Bd3 {[%clk 0:02:38]}  Qe8 {[%clk 0:02:25]} 15. Qe2 {[%clk 0:02:33]}  Qh5 {[%clk 0:02:22]} 16. Rad1 {[%clk 0:02:32]}  Bf5 {[%clk 0:02:19]} 17. a3 {[%clk 0:02:20]}  Be5 {[%clk 0:02:10]} 18. b4 {[%clk 0:02:06]}  Rfe8 {[%clk 0:02:06]} 19. c5 {[%clk 0:02:02]}  Rad8 {[%clk 0:02:05]} 20. Nb5 {[%clk 0:01:55]}  Bxb2 {[%clk 0:02:02]} 21. Qxb2 {[%clk 0:01:56]}  Bxd3 {[%clk 0:01:50]} 22. Rxd3 {[%clk 0:01:56]}  Nxd5 {[%clk 0:01:38]} 23. Qa2 {[%clk 0:01:42]}  Kh8 {[%clk 0:01:31]} 24. Rfd1 {[%clk 0:01:34]}  c6 {[%clk 0:01:29]} 25. Nd6 {[%clk 0:01:34]}  Re7 {[%clk 0:01:27]} 26. Qb2 {[%clk 0:01:28]}  Kg8 {[%clk 0:01:22]} 27. a4 {[%clk 0:01:26]}  Qe5 {[%clk 0:01:20]} 28. Qb3 {[%clk 0:01:22]}  Rxd6 {[%clk 0:01:16]} 29. cxd6 {[%clk 0:01:22]}  Qxd6 {[%clk 0:01:17]} 30. Rxd5 {[%clk 0:01:19]}  cxd5 {[%clk 0:01:17]} 31. Rxd5 {[%clk 0:01:20]}  Qe6 {[%clk 0:01:15]} 32. Rd8+ {[%clk 0:01:13]}  Kf7 {[%clk 0:01:15]} 33. Qxe6+ {[%clk 0:01:14]}  Kxe6 {[%clk 0:01:07]} 34. Kf1 {[%clk 0:01:13]}  Rd7 {[%clk 0:01:06]} 35. Re8+ {[%clk 0:00:53]}  Kf7 {[%clk 0:01:06]} 36. Re4 {[%clk 0:00:54]}  g5 {[%clk 0:01:03]} 37. g3 {[%clk 0:00:54]}  Rd1+ {[%clk 0:01:02]} 38. Ke2 {[%clk 0:00:52]}  Rd2+ {[%clk 0:01:03]} 39. Ke1 {[%clk 0:00:52]}  fxg3 {[%clk 0:00:42]} 40. hxg3 {[%clk 0:00:52]}  Ra2 {[%clk 0:00:39]} 41. a5 {[%clk 0:00:43]}  e2 {[%clk 0:00:38]} 42. Rxe2 {[%clk 0:00:42]}  Rxe2+ {[%clk 0:00:38]} 43. Kxe2 {[%clk 0:00:43]}  h5 {[%clk 0:00:33]} 44. Ke3 {[%clk 0:00:41]}  Kf6 {[%clk 0:00:25]} 45. Ke4 {[%clk 0:00:41]}  Ke6 {[%clk 0:00:16]} 46. b5 {[%clk 0:00:41]}  b6 {[%clk 0:00:14]} 47. a6 {[%clk 0:00:40]}  Kf6 {[%clk 0:00:09]} 48. f4 {[%clk 0:00:35]}  gxf4 {[%clk 0:00:09]} 49. Kxf4 {[%clk 0:00:35]}  Kg6 {[%clk 0:00:08]} 50. Ke3 {[%clk 0:00:29]}  Kg5 {[%clk 0:00:08]} 51. Kf3 {[%clk 0:00:30]}  Kf5 {[%clk 0:00:09]} 52. Kg2 {[%clk 0:00:29]}  Kg4 {[%clk 0:00:07]} 53. Kf2 {[%clk 0:00:29]}  Kg5 {[%clk 0:00:04]} 54. Ke3 {[%clk 0:00:28]}  Kg4 {[%clk 0:00:04]} 55. Kf2 {[%clk 0:00:28]}  Kg5 {[%clk 0:00:04]} 56. Kf3 {[%clk 0:00:25]}  Kf5 {[%clk 0:00:04]} 57. Kg2 {[%clk 0:00:25]}  Kg4 {[%clk 0:00:02]} 58. Kf2 {[%clk 0:00:26]} 1/2-1/2


[Site "https://www.chess.com"]

[Event "Titled Tuesday Blitz August 15 Early 2023"]
[White "Rozhkov, Viacheslav"]
[Black "Fajdetic, Hrvoje"]
[WhiteFideId "4181484"]
[BlackFideId "14501945"]
[WhiteElo "2397"]
[BlackElo "2260"]
[Result "1-0"]
[Round "9"]
[TimeControl "180+1"]
[Date "2023.08.15"]
[WhiteClock "0:00:38"]
[BlackClock "0:00:00"]
[Board "130"]

1. e4 {[%clk 0:03:00]}  c5 {[%clk 0:02:59]} 2. Nf3 {[%clk 0:03:01]}  a6 {[%clk 0:02:59]} 3. c3 {[%clk 0:03:00]}  d5 {[%clk 0:02:59]} 4. exd5 {[%clk 0:03:01]}  Qxd5 {[%clk 0:03:00]} 5. d4 {[%clk 0:03:02]}  Nf6 {[%clk 0:03:00]} 6. Be2 {[%clk 0:03:01]}  Bg4 {[%clk 0:02:59]} 7. O-O {[%clk 0:02:59]}  e6 {[%clk 0:02:59]} 8. h3 {[%clk 0:02:58]}  Bh5 {[%clk 0:02:58]} 9. Be3 {[%clk 0:02:52]}  Nbd7 {[%clk 0:02:57]} 10. c4 {[%clk 0:02:42]}  Qd6 {[%clk 0:02:55]} 11. Nc3 {[%clk 0:02:42]}  Be7 {[%clk 0:02:47]} 12. Qd2 {[%clk 0:02:32]}  cxd4 {[%clk 0:02:33]} 13. Nxd4 {[%clk 0:02:30]}  Bxe2 {[%clk 0:02:31]} 14. Qxe2 {[%clk 0:02:31]}  O-O {[%clk 0:02:28]} 15. Rfd1 {[%clk 0:02:28]}  Qc7 {[%clk 0:02:25]} 16. Rac1 {[%clk 0:02:24]}  Rfd8 {[%clk 0:02:24]} 17. Na4 {[%clk 0:02:17]}  Nc5 {[%clk 0:01:56]} 18. Nxc5 {[%clk 0:02:15]}  Bxc5 {[%clk 0:01:57]} 19. a3 {[%clk 0:02:16]}  Rd7 {[%clk 0:01:39]} 20. b4 {[%clk 0:02:14]}  Ba7 {[%clk 0:01:39]} 21. Nb3 {[%clk 0:02:06]}  Bxe3 {[%clk 0:01:30]} 22. Qxe3 {[%clk 0:02:07]}  Rxd1+ {[%clk 0:01:26]} 23. Rxd1 {[%clk 0:02:05]}  Rd8 {[%clk 0:01:27]} 24. Rxd8+ {[%clk 0:01:59]}  Qxd8 {[%clk 0:01:28]} 25. Nc5 {[%clk 0:01:52]}  Qc8 {[%clk 0:01:15]} 26. Qd4 {[%clk 0:01:48]}  h6 {[%clk 0:01:13]} 27. Qd6 {[%clk 0:01:40]}  Ne8 {[%clk 0:01:00]} 28. Qb6 {[%clk 0:01:34]}  a5 {[%clk 0:00:34]} 29. Qxb7 {[%clk 0:01:27]}  Qd8 {[%clk 0:00:26]} 30. Qd7 {[%clk 0:01:26]}  Qa8 {[%clk 0:00:13]} 31. b5 {[%clk 0:01:19]}  Nf6 {[%clk 0:00:12]} 32. Qc7 {[%clk 0:01:03]}  Ne4 {[%clk 0:00:07]} 33. Qb7 {[%clk 0:01:00]}  Qxb7 {[%clk 0:00:06]} 34. Nxb7 {[%clk 0:01:01]}  a4 {[%clk 0:00:02]} 35. c5 {[%clk 0:00:57]}  Kf8 {[%clk 0:00:02]} 36. c6 {[%clk 0:00:37]}  Ke7 {[%clk 0:00:00]} 37. b6 {[%clk 0:00:38]} 1-0


[Site "https://www.chess.com"]

[Event "Titled Tuesday Blitz August 15 Early 2023"]
[White "Fernandez Garcia, Gumersindo"]
[Black "Clawitter, Craig"]
[WhiteFideId "24516740"]
[BlackFideId "2023105"]
[WhiteElo "2385"]
[BlackElo "2246"]
[Result "1-0"]
[Round "9"]
[TimeControl "180+1"]
[Date "2023.08.15"]
[WhiteClock "0:00:47"]
[BlackClock "0:00:00"]
[Board "132"]

1. e4 {[%clk 0:03:00]}  e6 {[%clk 0:02:54]} 2. d4 {[%clk 0:02:57]}  d5 {[%clk 0:02:54]} 3. Nd2 {[%clk 0:02:58]}  Be7 {[%clk 0:02:54]} 4. Ngf3 {[%clk 0:02:55]}  Nf6 {[%clk 0:02:52]} 5. Bd3 {[%clk 0:02:54]}  c5 {[%clk 0:02:50]} 6. exd5 {[%clk 0:02:53]}  Qxd5 {[%clk 0:02:44]} 7. O-O {[%clk 0:02:44]}  cxd4 {[%clk 0:02:43]} 8. Bc4 {[%clk 0:02:42]}  Qd8 {[%clk 0:02:15]} 9. Nb3 {[%clk 0:02:40]}  Nc6 {[%clk 0:02:15]} 10. Nbxd4 {[%clk 0:02:40]}  Nxd4 {[%clk 0:02:16]} 11. Qxd4 {[%clk 0:02:40]}  Qxd4 {[%clk 0:02:15]} 12. Nxd4 {[%clk 0:02:40]}  a6 {[%clk 0:02:06]} 13. a4 {[%clk 0:02:39]}  Bd7 {[%clk 0:02:02]} 14. Rd1 {[%clk 0:02:35]}  Rc8 {[%clk 0:02:00]} 15. b3 {[%clk 0:02:31]}  Bb4 {[%clk 0:01:38]} 16. Bb2 {[%clk 0:02:27]}  Ke7 {[%clk 0:01:38]} 17. c3 {[%clk 0:02:17]}  Bc5 {[%clk 0:01:34]} 18. Re1 {[%clk 0:02:09]}  Rhd8 {[%clk 0:01:27]} 19. Rad1 {[%clk 0:02:05]}  Kf8 {[%clk 0:01:17]} 20. a5 {[%clk 0:02:02]}  Bxd4 {[%clk 0:00:49]} 21. Rxd4 {[%clk 0:01:56]}  Bb5 {[%clk 0:00:49]} 22. Rxd8+ {[%clk 0:01:27]}  Rxd8 {[%clk 0:00:49]} 23. Ba3+ {[%clk 0:01:28]}  Ke8 {[%clk 0:00:43]} 24. Bxb5+ {[%clk 0:01:27]}  axb5 {[%clk 0:00:43]} 25. g3 {[%clk 0:01:20]}  Rd3 {[%clk 0:00:39]} 26. Bb2 {[%clk 0:01:03]}  Nd5 {[%clk 0:00:26]} 27. c4 {[%clk 0:01:02]}  Rxb3 {[%clk 0:00:26]} 28. cxd5 {[%clk 0:01:02]}  Rxb2 {[%clk 0:00:26]} 29. dxe6 {[%clk 0:01:02]}  fxe6 {[%clk 0:00:09]} 30. Rxe6+ {[%clk 0:01:03]}  Kd7 {[%clk 0:00:09]} 31. Rb6 {[%clk 0:01:03]}  b4 {[%clk 0:00:07]} 32. Rxb7+ {[%clk 0:01:03]}  Kc6 {[%clk 0:00:07]} 33. Rxg7 {[%clk 0:00:54]}  b3 {[%clk 0:00:05]} 34. Kg2 {[%clk 0:00:50]}  Rb1 {[%clk 0:00:00]} 35. a6 {[%clk 0:00:47]} 1-0


[Site "https://www.chess.com"]

[Event "Titled Tuesday Blitz August 15 Early 2023"]
[White "Jakubowska, Anna"]
[Black "Liu, Leonardo"]
[WhiteFideId "1121952"]
[BlackFideId "30965780"]
[WhiteElo "2367"]
[BlackElo "2239"]
[Result "1-0"]
[Round "9"]
[TimeControl "180+1"]
[Date "2023.08.15"]
[WhiteClock "0:02:25"]
[BlackClock "0:02:23"]
[Board "134"]

1. e4 {[%clk 0:03:00]}  c5 {[%clk 0:02:59]} 2. Nf3 {[%clk 0:03:00]}  g6 {[%clk 0:03:00]} 3. d4 {[%clk 0:02:56]}  cxd4 {[%clk 0:03:00]} 4. Qxd4 {[%clk 0:02:56]}  Nf6 {[%clk 0:02:56]} 5. e5 {[%clk 0:02:55]}  Nc6 {[%clk 0:02:54]} 6. Qa4 {[%clk 0:02:53]}  Nd5 {[%clk 0:02:54]} 7. c4 {[%clk 0:02:51]}  Nb6 {[%clk 0:02:53]} 8. Qb3 {[%clk 0:02:45]}  d5 {[%clk 0:02:47]} 9. exd6 {[%clk 0:02:43]}  Qxd6 {[%clk 0:02:46]} 10. Qc3 {[%clk 0:02:38]}  Qb4 {[%clk 0:02:35]} 11. Bd2 {[%clk 0:02:28]}  a5 {[%clk 0:02:23]} 12. Qxh8 {[%clk 0:02:25]} 1-0


[Site "https://www.chess.com"]

[Event "Titled Tuesday Blitz August 15 Early 2023"]
[White "Thiel, Thomas"]
[Black "Topalov, Aleksandar"]
[WhiteFideId "4615964"]
[BlackFideId "925659"]
[WhiteElo "2235"]
[BlackElo "2362"]
[Result "1/2-1/2"]
[Round "9"]
[TimeControl "180+1"]
[Date "2023.08.15"]
[WhiteClock "0:00:59"]
[BlackClock "0:00:53"]
[Board "135"]

1. e4 {[%clk 0:02:53]}  e6 {[%clk 0:02:59]} 2. d4 {[%clk 0:02:51]}  d5 {[%clk 0:02:59]} 3. Nc3 {[%clk 0:02:52]}  Bb4 {[%clk 0:02:58]} 4. e5 {[%clk 0:02:50]}  Qd7 {[%clk 0:02:58]} 5. a3 {[%clk 0:02:48]}  Bxc3+ {[%clk 0:02:58]} 6. bxc3 {[%clk 0:02:48]}  b6 {[%clk 0:02:58]} 7. Qg4 {[%clk 0:02:46]}  f5 {[%clk 0:02:57]} 8. Qg3 {[%clk 0:02:45]}  Qf7 {[%clk 0:02:57]} 9. Nf3 {[%clk 0:02:42]}  h6 {[%clk 0:02:57]} 10. h4 {[%clk 0:02:40]}  Ba6 {[%clk 0:02:57]} 11. h5 {[%clk 0:02:40]}  Bxf1 {[%clk 0:02:41]} 12. Kxf1 {[%clk 0:02:41]}  Nc6 {[%clk 0:02:40]} 13. a4 {[%clk 0:02:37]}  Nge7 {[%clk 0:02:39]} 14. Ba3 {[%clk 0:02:35]}  Rg8 {[%clk 0:02:35]} 15. Kg1 {[%clk 0:02:27]}  Na5 {[%clk 0:02:30]} 16. Bxe7 {[%clk 0:02:13]}  Qxe7 {[%clk 0:02:30]} 17. Nh4 {[%clk 0:02:13]}  O-O-O {[%clk 0:02:27]} 18. Ng6 {[%clk 0:02:12]}  Qd7 {[%clk 0:02:25]} 19. Qf3 {[%clk 0:01:54]}  Kb8 {[%clk 0:02:17]} 20. Rh3 {[%clk 0:01:53]}  Nc4 {[%clk 0:02:15]} 21. Qd3 {[%clk 0:01:42]}  a5 {[%clk 0:02:10]} 22. Nf4 {[%clk 0:01:41]}  Nb2 {[%clk 0:01:43]} 23. Qb5 {[%clk 0:01:32]}  Qxb5 {[%clk 0:01:34]} 24. axb5 {[%clk 0:01:33]}  Rde8 {[%clk 0:01:31]} 25. Rg3 {[%clk 0:01:33]}  Re7 {[%clk 0:01:31]} 26. Rg6 {[%clk 0:01:32]}  Rge8 {[%clk 0:01:31]} 27. f3 {[%clk 0:01:21]}  Nc4 {[%clk 0:01:30]} 28. Kf2 {[%clk 0:01:18]}  Kb7 {[%clk 0:01:28]} 29. Ke2 {[%clk 0:01:15]}  c6 {[%clk 0:01:28]} 30. bxc6+ {[%clk 0:01:13]}  Kxc6 {[%clk 0:01:29]} 31. Kd3 {[%clk 0:01:13]}  a4 {[%clk 0:01:21]} 32. Ke2 {[%clk 0:01:06]}  a3 {[%clk 0:01:20]} 33. Nd3 {[%clk 0:01:05]}  Ra8 {[%clk 0:01:08]} 34. Nb4+ {[%clk 0:01:04]}  Kb5 {[%clk 0:01:07]} 35. Kd3 {[%clk 0:01:01]}  Nb2+ {[%clk 0:01:02]} 36. Kd2 {[%clk 0:00:59]}  Nc4+ {[%clk 0:00:57]} 37. Kd3 {[%clk 0:00:59]}  Nb2+ {[%clk 0:00:53]} 38. Kd2 {[%clk 0:00:59]}  Nc4+ {[%clk 0:00:53]} 39. Kd3 {[%clk 0:00:59]} 1/2-1/2


[Site "https://www.chess.com"]

[Event "Titled Tuesday Blitz August 15 Early 2023"]
[White "arturdailima"]
[Black "le-castor-faineant"]
[WhiteElo "2352"]
[BlackElo "2195"]
[Result "1/2-1/2"]
[Round "9"]
[TimeControl "180+1"]
[Date "2023.08.15"]
[WhiteClock "0:00:13"]
[BlackClock "0:00:09"]
[Board "137"]

1. e4 {[%clk 0:02:58]}  e5 {[%clk 0:02:59]} 2. Nf3 {[%clk 0:02:56]}  Nf6 {[%clk 0:03:00]} 3. Nxe5 {[%clk 0:02:55]}  d6 {[%clk 0:03:00]} 4. Nf3 {[%clk 0:02:55]}  Nxe4 {[%clk 0:03:00]} 5. Qe2 {[%clk 0:02:56]}  Qe7 {[%clk 0:03:00]} 6. Nc3 {[%clk 0:02:55]}  Nxc3 {[%clk 0:02:59]} 7. dxc3 {[%clk 0:02:56]}  Nc6 {[%clk 0:02:57]} 8. Be3 {[%clk 0:02:54]}  Bg4 {[%clk 0:02:52]} 9. O-O-O {[%clk 0:02:52]}  O-O-O {[%clk 0:02:52]} 10. h3 {[%clk 0:02:50]}  Bh5 {[%clk 0:02:52]} 11. g4 {[%clk 0:02:49]}  Bg6 {[%clk 0:02:52]} 12. Bg2 {[%clk 0:02:50]}  Kb8 {[%clk 0:02:18]} 13. Kb1 {[%clk 0:02:48]}  Qd7 {[%clk 0:02:04]} 14. Nd4 {[%clk 0:02:46]}  Nxd4 {[%clk 0:02:03]} 15. Bxd4 {[%clk 0:02:47]}  h5 {[%clk 0:01:57]} 16. f4 {[%clk 0:02:45]}  hxg4 {[%clk 0:01:55]} 17. hxg4 {[%clk 0:02:45]}  Rxh1 {[%clk 0:01:56]} 18. Bxh1 {[%clk 0:02:39]}  f5 {[%clk 0:01:57]} 19. g5 {[%clk 0:02:26]}  Re8 {[%clk 0:01:50]} 20. Qf3 {[%clk 0:02:23]}  c6 {[%clk 0:01:46]} 21. c4 {[%clk 0:02:21]}  Qe6 {[%clk 0:01:38]} 22. b3 {[%clk 0:02:12]}  Qe2 {[%clk 0:01:15]} 23. Kb2 {[%clk 0:01:53]}  Bh5 {[%clk 0:01:10]} 24. Qxe2 {[%clk 0:01:37]}  Rxe2 {[%clk 0:01:07]} 25. Rd3 {[%clk 0:01:11]}  g6 {[%clk 0:00:55]} 26. Bf6 {[%clk 0:00:58]}  Kc7 {[%clk 0:00:50]} 27. Bf3 {[%clk 0:00:46]}  Bxf3 {[%clk 0:00:44]} 28. Rxf3 {[%clk 0:00:46]}  Rh2 {[%clk 0:00:45]} 29. Re3 {[%clk 0:00:45]}  Kd7 {[%clk 0:00:45]} 30. c5 {[%clk 0:00:33]}  dxc5 {[%clk 0:00:37]} 31. Rd3+ {[%clk 0:00:33]}  Ke6 {[%clk 0:00:26]} 32. Rd8 {[%clk 0:00:31]}  Bd6 {[%clk 0:00:23]} 33. Re8+ {[%clk 0:00:21]}  Kd7 {[%clk 0:00:22]} 34. Rg8 {[%clk 0:00:20]}  Bxf4 {[%clk 0:00:20]} 35. Rxg6 {[%clk 0:00:20]}  Rg2 {[%clk 0:00:13]} 36. Rg7+ {[%clk 0:00:20]}  Kc8 {[%clk 0:00:12]} 37. g6 {[%clk 0:00:19]}  Be3 {[%clk 0:00:11]} 38. Ka3 {[%clk 0:00:11]}  f4 {[%clk 0:00:11]} 39. Rg8+ {[%clk 0:00:11]}  Kc7 {[%clk 0:00:11]} 40. g7 {[%clk 0:00:11]}  Bd4 {[%clk 0:00:05]} 41. Rf8 {[%clk 0:00:09]}  Bxf6 {[%clk 0:00:04]} 42. g8=Q {[%clk 0:00:09]}  Rxg8 {[%clk 0:00:05]} 43. Rxg8 {[%clk 0:00:10]}  Bd4 {[%clk 0:00:04]} 44. Rf8 {[%clk 0:00:10]}  c4 {[%clk 0:00:04]} 45. Rxf4 {[%clk 0:00:08]}  Bc5+ {[%clk 0:00:04]} 46. Kb2 {[%clk 0:00:07]}  cxb3 {[%clk 0:00:04]} 47. axb3 {[%clk 0:00:07]}  Bd6 {[%clk 0:00:04]} 48. Re4 {[%clk 0:00:07]}  Kb6 {[%clk 0:00:03]} 49. Re2 {[%clk 0:00:07]}  Bc5 {[%clk 0:00:04]} 50. c3 {[%clk 0:00:07]}  a6 {[%clk 0:00:04]} 51. Re4 {[%clk 0:00:07]}  Bd6 {[%clk 0:00:04]} 52. b4 {[%clk 0:00:07]}  Kc7 {[%clk 0:00:05]} 53. Kb3 {[%clk 0:00:07]}  Kb6 {[%clk 0:00:04]} 54. Rg4 {[%clk 0:00:07]}  a5 {[%clk 0:00:04]} 55. Rg6 {[%clk 0:00:06]}  Bc7 {[%clk 0:00:04]} 56. Kc4 {[%clk 0:00:06]}  axb4 {[%clk 0:00:04]} 57. cxb4 {[%clk 0:00:06]}  Be5 {[%clk 0:00:04]} 58. Rg5 {[%clk 0:00:07]}  Bf4 {[%clk 0:00:05]} 59. Rg6 {[%clk 0:00:07]}  Be5 {[%clk 0:00:05]} 60. Re6 {[%clk 0:00:08]}  Bf4 {[%clk 0:00:05]} 61. Re2 {[%clk 0:00:08]}  Bd6 {[%clk 0:00:05]} 62. Re6 {[%clk 0:00:08]}  Bg3 {[%clk 0:00:05]} 63. Rg6 {[%clk 0:00:08]}  Bf4 {[%clk 0:00:05]} 64. Kb3 {[%clk 0:00:09]}  Be5 {[%clk 0:00:05]} 65. Ka4 {[%clk 0:00:09]}  Bf4 {[%clk 0:00:05]} 66. Re6 {[%clk 0:00:10]}  Bg3 {[%clk 0:00:05]} 67. Kb3 {[%clk 0:00:11]}  Bf4 {[%clk 0:00:06]} 68. Re2 {[%clk 0:00:11]}  Bc7 {[%clk 0:00:06]} 69. Rg2 {[%clk 0:00:12]}  Bf4 {[%clk 0:00:06]} 70. Rg6 {[%clk 0:00:11]}  Bc7 {[%clk 0:00:07]} 71. Kc4 {[%clk 0:00:12]}  Bf4 {[%clk 0:00:08]} 72. Rg7 {[%clk 0:00:11]}  Bg3 {[%clk 0:00:08]} 73. Rf7 {[%clk 0:00:12]}  Bh2 {[%clk 0:00:09]} 74. Rf2 {[%clk 0:00:12]}  Bg3 {[%clk 0:00:09]} 75. Rg2 {[%clk 0:00:13]}  Bc7 {[%clk 0:00:09]} 76. Rg6 {[%clk 0:00:13]} 1/2-1/2


[Site "https://www.chess.com"]

[Event "Titled Tuesday Blitz August 15 Early 2023"]
[White "Nithyalakshmi, Sivanesan"]
[Black "Johnson, Ben"]
[WhiteFideId "5706955"]
[BlackFideId "2010917"]
[WhiteElo "2338"]
[BlackElo "2158"]
[Result "1-0"]
[Round "9"]
[TimeControl "180+1"]
[Date "2023.08.15"]
[WhiteClock "0:00:54"]
[BlackClock "0:00:09"]
[Board "139"]

1. e4 {[%clk 0:02:56]}  c5 {[%clk 0:02:59]} 2. Nc3 {[%clk 0:02:55]}  Nc6 {[%clk 0:02:59]} 3. Bb5 {[%clk 0:02:53]}  Nd4 {[%clk 0:02:58]} 4. Nf3 {[%clk 0:02:53]}  a6 {[%clk 0:02:56]} 5. Bd3 {[%clk 0:02:53]}  Nc6 {[%clk 0:02:55]} 6. O-O {[%clk 0:02:52]}  d6 {[%clk 0:02:50]} 7. b3 {[%clk 0:02:52]}  Nf6 {[%clk 0:02:49]} 8. Bb2 {[%clk 0:02:52]}  e5 {[%clk 0:02:44]} 9. h3 {[%clk 0:02:33]}  g6 {[%clk 0:02:36]} 10. Ne2 {[%clk 0:02:29]}  Bg7 {[%clk 0:02:33]} 11. Nh2 {[%clk 0:02:25]}  Nb4 {[%clk 0:02:24]} 12. Bc4 {[%clk 0:02:02]}  b5 {[%clk 0:02:21]} 13. a3 {[%clk 0:01:54]}  Nc6 {[%clk 0:02:01]} 14. Bd5 {[%clk 0:01:53]}  Nxd5 {[%clk 0:02:01]} 15. exd5 {[%clk 0:01:54]}  Nd4 {[%clk 0:01:45]} 16. Nxd4 {[%clk 0:01:32]}  cxd4 {[%clk 0:01:46]} 17. a4 {[%clk 0:01:26]}  Bb7 {[%clk 0:01:44]} 18. c4 {[%clk 0:01:22]}  O-O {[%clk 0:01:24]} 19. d3 {[%clk 0:01:19]}  f5 {[%clk 0:01:17]} 20. Nf3 {[%clk 0:01:18]}  bxa4 {[%clk 0:01:09]} 21. Rxa4 {[%clk 0:01:16]}  Qb6 {[%clk 0:01:08]} 22. Qd2 {[%clk 0:01:03]}  Qxb3 {[%clk 0:01:00]} 23. Rb4 {[%clk 0:01:02]}  Qa2 {[%clk 0:00:50]} 24. Rxb7 {[%clk 0:01:02]}  Rfb8 {[%clk 0:00:09]} 25. Qb4 {[%clk 0:00:54]} 1-0


[Site "https://www.chess.com"]

[Event "Titled Tuesday Blitz August 15 Early 2023"]
[White "Li, Hui"]
[Black "Seifert, Henryk"]
[WhiteFideId "15400310"]
[BlackFideId "1100963"]
[WhiteElo "2338"]
[BlackElo "2096"]
[Result "0-1"]
[Round "9"]
[TimeControl "180+1"]
[Date "2023.08.15"]
[WhiteClock "0:00:00"]
[BlackClock "0:00:27"]
[Board "140"]

1. e4 {[%clk 0:02:23]}  e6 {[%clk 0:02:58]} 2. d4 {[%clk 0:02:21]}  d5 {[%clk 0:02:58]} 3. Nd2 {[%clk 0:02:21]}  Nf6 {[%clk 0:02:57]} 4. e5 {[%clk 0:02:21]}  Nfd7 {[%clk 0:02:57]} 5. Bd3 {[%clk 0:02:22]}  c5 {[%clk 0:02:57]} 6. c3 {[%clk 0:02:22]}  Nc6 {[%clk 0:02:57]} 7. Ne2 {[%clk 0:02:23]}  Qb6 {[%clk 0:02:53]} 8. Nf3 {[%clk 0:02:23]}  cxd4 {[%clk 0:02:52]} 9. cxd4 {[%clk 0:02:24]}  f6 {[%clk 0:02:52]} 10. exf6 {[%clk 0:02:23]}  Nxf6 {[%clk 0:02:53]} 11. O-O {[%clk 0:02:23]}  Bd6 {[%clk 0:02:53]} 12. Bf4 {[%clk 0:02:23]}  Bxf4 {[%clk 0:02:49]} 13. Nxf4 {[%clk 0:02:24]}  Qxb2 {[%clk 0:02:41]} 14. Re1 {[%clk 0:02:20]}  O-O {[%clk 0:02:40]} 15. Re2 {[%clk 0:01:55]}  Qa3 {[%clk 0:02:32]} 16. Nxe6 {[%clk 0:01:42]}  Bxe6 {[%clk 0:02:30]} 17. Rxe6 {[%clk 0:01:43]}  Rae8 {[%clk 0:02:28]} 18. Rxe8 {[%clk 0:01:42]}  Rxe8 {[%clk 0:02:29]} 19. Qb3 {[%clk 0:01:34]}  Qxb3 {[%clk 0:02:21]} 20. axb3 {[%clk 0:01:34]}  a6 {[%clk 0:02:21]} 21. h3 {[%clk 0:01:29]}  g6 {[%clk 0:02:17]} 22. Rc1 {[%clk 0:01:27]}  Re7 {[%clk 0:02:10]} 23. Bxa6 {[%clk 0:01:17]}  Nxd4 {[%clk 0:02:00]} 24. Nxd4 {[%clk 0:01:15]}  bxa6 {[%clk 0:02:00]} 25. Rc6 {[%clk 0:01:09]}  Re1+ {[%clk 0:01:57]} 26. Kh2 {[%clk 0:01:09]}  Ne4 {[%clk 0:01:52]} 27. Rxa6 {[%clk 0:00:49]}  Nxf2 {[%clk 0:01:48]} 28. b4 {[%clk 0:00:19]}  Rh1+ {[%clk 0:01:39]} 29. Kg3 {[%clk 0:00:19]}  Ne4+ {[%clk 0:01:39]} 30. Kf4 {[%clk 0:00:19]}  Rb1 {[%clk 0:01:32]} 31. b5 {[%clk 0:00:17]}  Rb4 {[%clk 0:01:32]} 32. Ke5 {[%clk 0:00:16]}  Nc3 {[%clk 0:01:19]} 33. Ra8+ {[%clk 0:00:16]}  Kg7 {[%clk 0:01:18]} 34. Ra7+ {[%clk 0:00:14]}  Kh6 {[%clk 0:01:10]} 35. Rb7 {[%clk 0:00:08]}  Rb1 {[%clk 0:01:01]} 36. b6 {[%clk 0:00:05]}  Na4 {[%clk 0:00:45]} 37. g4 {[%clk 0:00:03]}  Nxb6 {[%clk 0:00:42]} 38. h4 {[%clk 0:00:03]}  Nc4+ {[%clk 0:00:41]} 39. Kxd5 {[%clk 0:00:03]}  Rxb7 {[%clk 0:00:41]} 40. Kxc4 {[%clk 0:00:03]}  Kg7 {[%clk 0:00:38]} 41. Kd5 {[%clk 0:00:03]}  Ra7 {[%clk 0:00:35]} 42. Ke5 {[%clk 0:00:03]}  Ra5+ {[%clk 0:00:34]} 43. Ke4 {[%clk 0:00:03]}  Ra4 {[%clk 0:00:34]} 44. Ke5 {[%clk 0:00:03]}  h6 {[%clk 0:00:33]} 45. g5 {[%clk 0:00:03]}  h5 {[%clk 0:00:31]} 46. Ne6+ {[%clk 0:00:03]}  Kf7 {[%clk 0:00:30]} 47. Nd8+ {[%clk 0:00:03]}  Ke7 {[%clk 0:00:30]} 48. Nc6+ {[%clk 0:00:04]}  Kf7 {[%clk 0:00:30]} 49. Nd8+ {[%clk 0:00:03]}  Kg7 {[%clk 0:00:30]} 50. Ne6+ {[%clk 0:00:04]}  Kh7 {[%clk 0:00:30]} 51. Nf4 {[%clk 0:00:00]}  Ra5+ {[%clk 0:00:27]} 0-1


[Site "https://www.chess.com"]